[Event "Early-Titled-Tuesday-Blitz-April-16-2024"]
[Site "Chess.com"]
[Date "2024.04.16"]
[Round "8"]
[White "Lion-Al-Messi"]
[Black "emeli_chess"]
[Result "1/2-1/2"]
[WhiteElo "2573"]
[BlackElo "2465"]
[TimeControl "180+1"]
[EndTime "9:33:02 PDT"]
[Termination "Game drawn - insufficient material"]

1. e4 {[%clk 0:03:00.9]} 1... e5 {[%clk 0:02:59]} 2. Nf3 {[%clk 0:03:01.1]} 2...
Nc6 {[%clk 0:02:59.3]} 3. Bb5 {[%clk 0:03:01.2]} 3... a6 {[%clk 0:02:59.7]} 4.
Ba4 {[%clk 0:03:01.4]} 4... Nf6 {[%clk 0:03:00.1]} 5. O-O {[%clk 0:03:01.7]}
5... Nxe4 {[%clk 0:03:00.3]} 6. d4 {[%clk 0:03:01.4]} 6... b5 {[%clk 0:03:00.4]}
7. Bb3 {[%clk 0:03:01.7]} 7... d5 {[%clk 0:03:01.1]} 8. dxe5 {[%clk 0:03:02]}
8... Be6 {[%clk 0:03:01.8]} 9. Nbd2 {[%clk 0:03:02.1]} 9... Bc5 {[%clk
0:03:01.9]} 10. Nxe4 {[%clk 0:02:57.7]} 10... dxe4 {[%clk 0:03:01.6]} 11. Ng5
{[%clk 0:02:55.3]} 11... Qxd1 {[%clk 0:02:57.7]} 12. Rxd1 {[%clk 0:02:54.7]}
12... Nxe5 {[%clk 0:02:54.9]} 13. Bxe6 {[%clk 0:02:52.9]} 13... fxe6 {[%clk
0:02:48.9]} 14. Nxe6 {[%clk 0:02:53.8]} 14... Bb6 {[%clk 0:02:48]} 15. Bf4
{[%clk 0:02:51.6]} 15... Kf7 {[%clk 0:01:51.9]} 16. Ng5+ {[%clk 0:02:51.3]}
16... Kg6 {[%clk 0:01:44.1]} 17. Nxe4 {[%clk 0:02:51]} 17... Rhe8 {[%clk
0:01:37.6]} 18. Rd5 {[%clk 0:02:47]} 18... Nc4 {[%clk 0:01:31]} 19. Ng3 {[%clk
0:02:34]} 19... Nxb2 {[%clk 0:01:24.1]} 20. Rd7 {[%clk 0:02:32]} 20... Rad8
{[%clk 0:01:21.4]} 21. Rxd8 {[%clk 0:02:27]} 21... Rxd8 {[%clk 0:01:21.4]} 22.
h4 {[%clk 0:02:17.8]} 22... Rd1+ {[%clk 0:01:18]} 23. Rxd1 {[%clk 0:02:17.7]}
23... Nxd1 {[%clk 0:01:18.4]} 24. h5+ {[%clk 0:02:18.1]} 24... Kf6 {[%clk
0:01:16.8]} 25. Kf1 {[%clk 0:02:08.7]} 25... Nxf2 {[%clk 0:01:16.2]} 26. Ke2
{[%clk 0:02:02.9]} 26... Ng4 {[%clk 0:01:16.3]} 27. Bd2 {[%clk 0:02:01.6]} 27...
g6 {[%clk 0:01:11.5]} 28. Ne4+ {[%clk 0:01:59.4]} 28... Kf5 {[%clk 0:01:07.3]}
29. Ng3+ {[%clk 0:01:58]} 29... Ke5 {[%clk 0:01:03.7]} 30. Kf3 {[%clk
0:01:46.2]} 30... Nf6 {[%clk 0:00:56.4]} 31. hxg6 {[%clk 0:01:31]} 31... hxg6
{[%clk 0:00:56]} 32. Bc3+ {[%clk 0:01:30.1]} 32... Ke6 {[%clk 0:00:56.3]} 33.
Ne2 {[%clk 0:01:28]} 33... Nd5 {[%clk 0:00:53.3]} 34. Bd2 {[%clk 0:01:27.8]}
34... Ke5 {[%clk 0:00:50.7]} 35. g4 {[%clk 0:01:27.1]} 35... c5 {[%clk
0:00:43.1]} 36. Be1 {[%clk 0:01:20.1]} 36... c4 {[%clk 0:00:41.3]} 37. Bg3+
{[%clk 0:01:20]} 37... Ke6 {[%clk 0:00:41.3]} 38. Ke4 {[%clk 0:01:16.8]} 38...
Nf6+ {[%clk 0:00:40.4]} 39. Kf3 {[%clk 0:01:17.3]} 39... Nd5 {[%clk 0:00:35.6]}
40. Ke4 {[%clk 0:01:16.9]} 40... Nb4 {[%clk 0:00:35.6]} 41. Nf4+ {[%clk
0:01:16.1]} 41... Kf7 {[%clk 0:00:32.9]} 42. Nd5 {[%clk 0:01:10.8]} 42... Nxd5
{[%clk 0:00:20.5]} 43. Kxd5 {[%clk 0:01:11.7]} 43... Kf6 {[%clk 0:00:20.9]} 44.
Bf4 {[%clk 0:01:08]} 44... Bf2 {[%clk 0:00:16.8]} 45. Kc6 {[%clk 0:01:06.3]}
45... Ke6 {[%clk 0:00:15.7]} 46. Kb7 {[%clk 0:01:06.1]} 46... Kd5 {[%clk
0:00:14.7]} 47. Kxa6 {[%clk 0:01:04.9]} 47... Kc6 {[%clk 0:00:14.5]} 48. Bd2
{[%clk 0:01:02]} 48... Bb6 {[%clk 0:00:13.3]} 49. Ba5 {[%clk 0:00:50.5]} 49...
Bc5 {[%clk 0:00:12.6]} 50. Be1 {[%clk 0:00:46.8]} 50... Bb6 {[%clk 0:00:12.2]}
51. Bg3 {[%clk 0:00:42.8]} 51... Bd8 {[%clk 0:00:11.7]} 52. Bf2 {[%clk 0:00:39]}
52... Bc7 {[%clk 0:00:11.4]} 53. Bd4 {[%clk 0:00:38.9]} 53... Bd8 {[%clk
0:00:11.4]} 54. Ka7 {[%clk 0:00:37.2]} 54... Bc7 {[%clk 0:00:11.3]} 55. Bc3
{[%clk 0:00:34.9]} 55... Bb6+ {[%clk 0:00:10.6]} 56. Kb8 {[%clk 0:00:35]} 56...
Bc5 {[%clk 0:00:10.9]} 57. Kc8 {[%clk 0:00:33.8]} 57... b4 {[%clk 0:00:11.2]}
58. Bd2 {[%clk 0:00:31.8]} 58... Kb5 {[%clk 0:00:11.5]} 59. Kd7 {[%clk
0:00:30.7]} 59... Ka4 {[%clk 0:00:11.7]} 60. Bc1 {[%clk 0:00:31.1]} 60... b3
{[%clk 0:00:10.8]} 61. axb3+ {[%clk 0:00:27.9]} 61... cxb3 {[%clk 0:00:11.1]}
62. cxb3+ {[%clk 0:00:28.2]} 62... Kxb3 {[%clk 0:00:11.5]} 63. Ke6 {[%clk
0:00:28.5]} 63... Kc4 {[%clk 0:00:11.8]} 64. Kf6 {[%clk 0:00:26.7]} 64... Kd5
{[%clk 0:00:11.9]} 65. Kxg6 {[%clk 0:00:26.8]} 65... Ke6 {[%clk 0:00:12.4]} 66.
Kh7 {[%clk 0:00:23]} 66... Be7 {[%clk 0:00:12.3]} 67. Bb2 {[%clk 0:00:16.3]}
67... Kf7 {[%clk 0:00:12.2]} 68. Bc3 {[%clk 0:00:16.2]} 68... Bd8 {[%clk
0:00:12.2]} 69. Bd4 {[%clk 0:00:16.1]} 69... Be7 {[%clk 0:00:12.6]} 70. Bg7
{[%clk 0:00:16.1]} 70... Bd8 {[%clk 0:00:12.5]} 71. Be5 {[%clk 0:00:15.8]} 71...
Be7 {[%clk 0:00:12.8]} 72. Bf4 {[%clk 0:00:15.6]} 72... Bd8 {[%clk 0:00:13.1]}
73. Kh6 {[%clk 0:00:16]} 73... Be7 {[%clk 0:00:13.2]} 74. Bg5 {[%clk 0:00:16]}
74... Bxg5+ {[%clk 0:00:12.3]} 75. Kxg5 {[%clk 0:00:16.3]} 75... Kg7 {[%clk
0:00:12.7]} 76. Kf5 {[%clk 0:00:16.7]} 76... Kf7 {[%clk 0:00:13.2]} 77. Kg5
{[%clk 0:00:16.4]} 77... Kg7 {[%clk 0:00:13.5]} 78. Kf5 {[%clk 0:00:16.4]} 78...
Kf7 {[%clk 0:00:13.9]} 79. Kf4 {[%clk 0:00:16.6]} 79... Kg6 {[%clk 0:00:13.9]}
80. g5 {[%clk 0:00:16.5]} 80... Kg7 {[%clk 0:00:14.3]} 81. g6 {[%clk 0:00:16.9]}
81... Kxg6 {[%clk 0:00:14.6]} 1/2-1/2

[Event "Early-Titled-Tuesday-Blitz-April-16-2024"]
[Site "Chess.com"]
[Date "2024.04.16"]
[Round "8"]
[White "klercaku"]
[Black "N_I_Chess"]
[Result "1-0"]
[WhiteElo "2226"]
[BlackElo "2377"]
[TimeControl "180+1"]
[EndTime "9:33:06 PDT"]
[Termination "klercaku won on time"]

1. e4 {[%clk 0:03:00]} 1... Nf6 {[%clk 0:02:39.6]} 2. e5 {[%clk 0:03:00]} 2...
Nd5 {[%clk 0:02:35]} 3. c4 {[%clk 0:02:59.8]} 3... Nb6 {[%clk 0:02:32.4]} 4. d4
{[%clk 0:03:00.3]} 4... d6 {[%clk 0:02:31.9]} 5. exd6 {[%clk 0:03:00.9]} 5...
cxd6 {[%clk 0:02:32.8]} 6. Nf3 {[%clk 0:03:01.1]} 6... g6 {[%clk 0:02:29.1]} 7.
b3 {[%clk 0:03:00.7]} 7... Bg7 {[%clk 0:02:28.6]} 8. Nc3 {[%clk 0:02:57.8]} 8...
O-O {[%clk 0:02:27.7]} 9. Be2 {[%clk 0:02:57.1]} 9... Bf5 {[%clk 0:02:14]} 10.
O-O {[%clk 0:02:56]} 10... d5 {[%clk 0:02:11.1]} 11. c5 {[%clk 0:02:50.2]} 11...
Nc8 {[%clk 0:02:10.5]} 12. Be3 {[%clk 0:02:42.3]} 12... Nc6 {[%clk 0:02:04.6]}
13. Rc1 {[%clk 0:02:39.1]} 13... e6 {[%clk 0:01:57.9]} 14. Qd2 {[%clk
0:02:34.9]} 14... Bg4 {[%clk 0:01:49.3]} 15. h3 {[%clk 0:02:27.2]} 15... Bxf3
{[%clk 0:01:47.8]} 16. Bxf3 {[%clk 0:02:27.8]} 16... N8e7 {[%clk 0:01:47.4]} 17.
a3 {[%clk 0:02:24]} 17... Nf5 {[%clk 0:01:37]} 18. Ne2 {[%clk 0:02:21.7]} 18...
a5 {[%clk 0:01:27.5]} 19. g3 {[%clk 0:02:17.2]} 19... Qf6 {[%clk 0:01:14.1]} 20.
Bg5 {[%clk 0:02:02.8]} 20... Nfxd4 {[%clk 0:00:51.9]} 21. Bg4 {[%clk 0:00:50.5]}
21... Nxe2+ {[%clk 0:00:37.7]} 22. Bxe2 {[%clk 0:00:46.9]} 22... Qb2 {[%clk
0:00:25.3]} 23. Rc2 {[%clk 0:00:46.8]} 23... Qxa3 {[%clk 0:00:22.9]} 24. Qe3
{[%clk 0:00:17.2]} 24... Qb4 {[%clk 0:00:15.2]} 25. g4 {[%clk 0:00:06.1]} 25...
Nd4 {[%clk 0:00:10.9]} 26. Rd2 {[%clk 0:00:02.9]} 26... Nxb3 {[%clk 0:00:08.1]}
27. Rd3 {[%clk 0:00:02.3]} 27... a4 {[%clk 0:00:08.1]} 28. Be7 {[%clk
0:00:02.3]} 28... Rfe8 {[%clk 0:00:07.7]} 29. Bd6 {[%clk 0:00:02.6]} 29... Rad8
{[%clk 0:00:06.4]} 30. Qg3 {[%clk 0:00:02.4]} 30... Qa5 {[%clk 0:00:06.2]} 31.
Bc7 {[%clk 0:00:02.5]} 31... Qxc5 {[%clk 0:00:06.5]} 32. Bxd8 {[%clk 0:00:02.5]}
32... Rxd8 {[%clk 0:00:07.4]} 33. Rf3 {[%clk 0:00:02.3]} 33... Qd6 {[%clk
0:00:07.8]} 34. Qxd6 {[%clk 0:00:01.7]} 34... Rxd6 {[%clk 0:00:07.8]} 35. Bb5
{[%clk 0:00:02.3]} 35... Nc5 {[%clk 0:00:06.5]} 36. Rc3 {[%clk 0:00:01.7]} 36...
b6 {[%clk 0:00:06.9]} 37. Ra3 {[%clk 0:00:01.6]} 37... d4 {[%clk 0:00:06.9]} 38.
Ra2 {[%clk 0:00:01.6]} 38... d3 {[%clk 0:00:06.5]} 39. Bxa4 {[%clk 0:00:02]}
39... Nxa4 {[%clk 0:00:06.5]} 40. Rxa4 {[%clk 0:00:02.9]} 40... d2 {[%clk
0:00:06.7]} 41. Rd1 {[%clk 0:00:03.5]} 41... Bc3 {[%clk 0:00:07]} 42. Ra2 {[%clk
0:00:04]} 42... Ba5 {[%clk 0:00:07.5]} 43. Rc2 {[%clk 0:00:04.2]} 43... Kg7
{[%clk 0:00:07.2]} 44. Kf1 {[%clk 0:00:04.7]} 44... h6 {[%clk 0:00:07.7]} 45.
Ke2 {[%clk 0:00:05.4]} 45... g5 {[%clk 0:00:08.2]} 46. f3 {[%clk 0:00:05.9]}
46... Kf6 {[%clk 0:00:08.4]} 47. Rb2 {[%clk 0:00:06.5]} 47... Rd4 {[%clk
0:00:08.3]} 48. Rb5 {[%clk 0:00:06.4]} 48... Rd5 {[%clk 0:00:07]} 49. Rxd5
{[%clk 0:00:05.2]} 49... exd5 {[%clk 0:00:07.9]} 50. Kd3 {[%clk 0:00:05.7]}
50... Ke5 {[%clk 0:00:08.4]} 51. Ke3 {[%clk 0:00:05.5]} 51... d4+ {[%clk
0:00:07.6]} 52. Ke2 {[%clk 0:00:04.6]} 52... Kf4 {[%clk 0:00:07.9]} 53. Kf2
{[%clk 0:00:05.3]} 53... d3 {[%clk 0:00:08]} 54. Ra1 {[%clk 0:00:04.2]} 54...
Bc3 {[%clk 0:00:06.8]} 55. Rd1 {[%clk 0:00:03.3]} 55... b5 {[%clk 0:00:07]} 56.
Rb1 {[%clk 0:00:02.7]} 56... b4 {[%clk 0:00:07.2]} 57. Rd1 {[%clk 0:00:02.9]}
57... b3 {[%clk 0:00:07.4]} 58. Rb1 {[%clk 0:00:03.4]} 58... b2 {[%clk
0:00:07.2]} 59. Rd1 {[%clk 0:00:04]} 59... Ke5 {[%clk 0:00:06.9]} 60. Rb1 {[%clk
0:00:04]} 60... Kd4 {[%clk 0:00:05.9]} 61. Rd1 {[%clk 0:00:03.6]} 61... Kc4
{[%clk 0:00:05.8]} 62. Ke3 {[%clk 0:00:04.2]} 62... f6 {[%clk 0:00:05]} 63. Ke4
{[%clk 0:00:04.2]} 63... Kb3 {[%clk 0:00:03.1]} 64. Kxd3 {[%clk 0:00:04]} 64...
Bb4 {[%clk 0:00:03.4]} 65. Rb1 {[%clk 0:00:02.6]} 65... Ka2 {[%clk 0:00:02.8]}
66. Kc2 {[%clk 0:00:03.2]} 66... Ba3 {[%clk 0:00:01.1]} 67. Rd1 {[%clk
0:00:02.5]} 67... Bb4 {[%clk 0:00:01]} 68. Rb1 {[%clk 0:00:02.4]} 68... Bc3
{[%clk 0:00:01.3]} 69. Rd1 {[%clk 0:00:02.5]} 1-0

[Event "Early-Titled-Tuesday-Blitz-April-16-2024"]
[Site "Chess.com"]
[Date "2024.04.16"]
[Round "8"]
[White "Slovineanu"]
[Black "BenchGM"]
[Result "1-0"]
[WhiteElo "2505"]
[BlackElo "2323"]
[TimeControl "180+1"]
[EndTime "9:33:12 PDT"]
[Termination "Slovineanu won on time"]

1. d4 {[%clk 0:03:00.9]} 1... Nf6 {[%clk 0:02:59.7]} 2. Nf3 {[%clk 0:03:00.9]}
2... d5 {[%clk 0:02:59.5]} 3. c4 {[%clk 0:03:01.1]} 3... e6 {[%clk 0:02:57.8]}
4. e3 {[%clk 0:03:01.5]} 4... c5 {[%clk 0:02:51.9]} 5. cxd5 {[%clk 0:03:00.7]}
5... Nxd5 {[%clk 0:02:48.3]} 6. e4 {[%clk 0:02:59.7]} 6... Nf6 {[%clk
0:02:43.9]} 7. Nc3 {[%clk 0:02:59.8]} 7... cxd4 {[%clk 0:02:01.6]} 8. Nxd4
{[%clk 0:02:59.2]} 8... e5 {[%clk 0:01:49.1]} 9. Ndb5 {[%clk 0:02:57.6]} 9...
Qxd1+ {[%clk 0:01:47.8]} 10. Kxd1 {[%clk 0:02:57.7]} 10... Na6 {[%clk 0:01:42]}
11. Bc4 {[%clk 0:02:45.1]} 11... Bc5 {[%clk 0:01:34.2]} 12. Ke2 {[%clk
0:02:41.3]} 12... O-O {[%clk 0:01:28.2]} 13. Bg5 {[%clk 0:02:40.1]} 13... Be6
{[%clk 0:01:12]} 14. Bxe6 {[%clk 0:02:39.4]} 14... fxe6 {[%clk 0:01:12.1]} 15.
f3 {[%clk 0:02:37.4]} 15... h6 {[%clk 0:01:04.7]} 16. Be3 {[%clk 0:02:36.8]}
16... Bxe3 {[%clk 0:00:44.2]} 17. Kxe3 {[%clk 0:02:36.8]} 17... Nb4 {[%clk
0:00:43.9]} 18. Rac1 {[%clk 0:02:28.3]} 18... Rf7 {[%clk 0:00:39.5]} 19. Rhd1
{[%clk 0:02:21.9]} 19... a6 {[%clk 0:00:34.7]} 20. Nd6 {[%clk 0:02:21]} 20...
Rd7 {[%clk 0:00:34.7]} 21. Nc4 {[%clk 0:02:17]} 21... Rad8 {[%clk 0:00:32]} 22.
Rxd7 {[%clk 0:02:04.1]} 22... Nxd7 {[%clk 0:00:26.4]} 23. Rd1 {[%clk 0:01:51.1]}
23... Nc6 {[%clk 0:00:26.3]} 24. a4 {[%clk 0:01:40.2]} 24... Kf8 {[%clk
0:00:16.4]} 25. g3 {[%clk 0:01:31.3]} 25... Ke7 {[%clk 0:00:16.2]} 26. f4 {[%clk
0:01:31.7]} 26... Nd4 {[%clk 0:00:12]} 27. Rd2 {[%clk 0:01:24.8]} 27... Nb3
{[%clk 0:00:10]} 28. Rd6 {[%clk 0:01:16.7]} 28... exf4+ {[%clk 0:00:09.8]} 29.
gxf4 {[%clk 0:01:16.5]} 29... Rc8 {[%clk 0:00:10]} 30. Rxd7+ {[%clk 0:01:14.2]}
30... Kxd7 {[%clk 0:00:10]} 31. Nb6+ {[%clk 0:01:14.8]} 31... Kc7 {[%clk
0:00:09.7]} 32. Nxc8 {[%clk 0:01:15.3]} 32... Kxc8 {[%clk 0:00:10.6]} 33. e5
{[%clk 0:01:09.5]} 33... Kc7 {[%clk 0:00:10]} 34. Kd3 {[%clk 0:01:05.1]} 34...
Nc5+ {[%clk 0:00:08.8]} 35. Kc4 {[%clk 0:01:02.8]} 35... Kc6 {[%clk 0:00:08.5]}
36. b4 {[%clk 0:01:02]} 36... Nd7 {[%clk 0:00:07.8]} 37. b5+ {[%clk 0:00:57]}
37... Kb6 {[%clk 0:00:07.1]} 38. Ne4 {[%clk 0:00:55.4]} 38... g6 {[%clk
0:00:06.5]} 39. h4 {[%clk 0:00:54.2]} 39... Ka5 {[%clk 0:00:06]} 40. bxa6 {[%clk
0:00:53.3]} 40... bxa6 {[%clk 0:00:05.6]} 41. Nc5 {[%clk 0:00:36.2]} 41... Nxc5
{[%clk 0:00:05.6]} 42. Kxc5 {[%clk 0:00:36.7]} 42... Kxa4 {[%clk 0:00:06.5]} 43.
Kd6 {[%clk 0:00:37.4]} 43... Kb3 {[%clk 0:00:06.6]} 44. Kxe6 {[%clk 0:00:38]}
44... a5 {[%clk 0:00:07.5]} 45. Kf7 {[%clk 0:00:38.6]} 45... a4 {[%clk
0:00:08.4]} 46. e6 {[%clk 0:00:39.1]} 46... a3 {[%clk 0:00:09.3]} 47. e7 {[%clk
0:00:39.7]} 47... a2 {[%clk 0:00:10.2]} 48. e8=Q {[%clk 0:00:40.2]} 48... a1=Q
{[%clk 0:00:10.4]} 49. Qe6+ {[%clk 0:00:31.2]} 49... Kc2 {[%clk 0:00:10.2]} 50.
Kxg6 {[%clk 0:00:29.7]} 50... Qg1+ {[%clk 0:00:09.4]} 51. Kxh6 {[%clk
0:00:29.2]} 51... Qg3 {[%clk 0:00:08.9]} 52. Qe4+ {[%clk 0:00:25.9]} 52... Kd2
{[%clk 0:00:08.6]} 53. h5 {[%clk 0:00:26.2]} 53... Qg8 {[%clk 0:00:06.9]} 54.
Qd4+ {[%clk 0:00:22.1]} 54... Ke2 {[%clk 0:00:06.6]} 55. Qe5+ {[%clk 0:00:21.2]}
55... Kf3 {[%clk 0:00:06.3]} 56. f5 {[%clk 0:00:20.4]} 56... Kg4 {[%clk
0:00:05.4]} 57. Qe4+ {[%clk 0:00:15.1]} 57... Kg3 {[%clk 0:00:05]} 58. f6 {[%clk
0:00:14.3]} 58... Qf8+ {[%clk 0:00:04.2]} 59. Kg6 {[%clk 0:00:14.4]} 59... Qg8+
{[%clk 0:00:04.3]} 60. Kf5 {[%clk 0:00:14.8]} 60... Qh7+ {[%clk 0:00:03.2]} 61.
Ke5 {[%clk 0:00:14.5]} 61... Qc7+ {[%clk 0:00:03]} 62. Ke6 {[%clk 0:00:14.7]}
62... Qc8+ {[%clk 0:00:02.6]} 63. Kf7 {[%clk 0:00:14.3]} 63... Qd7+ {[%clk
0:00:02.2]} 64. Qe7 {[%clk 0:00:14.1]} 64... Qd5+ {[%clk 0:00:02.6]} 65. Kf8
{[%clk 0:00:14.1]} 65... Qxh5 {[%clk 0:00:02.3]} 66. Qd6+ {[%clk 0:00:11.2]}
66... Kg4 {[%clk 0:00:02.2]} 67. Qd1+ {[%clk 0:00:10.4]} 67... Kg5 {[%clk
0:00:02.1]} 68. Qxh5+ {[%clk 0:00:11]} 68... Kxh5 {[%clk 0:00:02.5]} 69. f7
{[%clk 0:00:11.7]} 69... Kg6 {[%clk 0:00:02.8]} 70. Ke8 {[%clk 0:00:12.4]} 70...
Kg7 {[%clk 0:00:02]} 71. f8=Q+ {[%clk 0:00:12.9]} 71... Kh7 {[%clk 0:00:02.1]}
72. Qf3 {[%clk 0:00:11.3]} 72... Kg7 {[%clk 0:00:01.8]} 73. Ke7 {[%clk
0:00:10.7]} 73... Kg6 {[%clk 0:00:01.8]} 74. Qg4+ {[%clk 0:00:11]} 74... Kh7
{[%clk 0:00:01.1]} 75. Kf7 {[%clk 0:00:11.2]} 1-0

[Event "Early-Titled-Tuesday-Blitz-April-16-2024"]
[Site "Chess.com"]
[Date "2024.04.16"]
[Round "8"]
[White "Durarbayli"]
[Black "FREDERICKtheMATE"]
[Result "1-0"]
[WhiteElo "2877"]
[BlackElo "2693"]
[TimeControl "180+1"]
[EndTime "9:33:17 PDT"]
[Termination "Durarbayli won by checkmate"]

1. e4 {[%clk 0:03:00.9]} 1... c5 {[%clk 0:03:00.5]} 2. Nf3 {[%clk 0:03:00.7]}
2... Nc6 {[%clk 0:03:00.7]} 3. Bb5 {[%clk 0:02:59.4]} 3... g6 {[%clk 0:03:00.3]}
4. O-O {[%clk 0:02:58.2]} 4... Bg7 {[%clk 0:03:00.3]} 5. c3 {[%clk 0:02:58]}
5... e5 {[%clk 0:03:00]} 6. d4 {[%clk 0:02:57.5]} 6... cxd4 {[%clk 0:03:00.6]}
7. cxd4 {[%clk 0:02:58.2]} 7... exd4 {[%clk 0:03:01.3]} 8. Bf4 {[%clk
0:02:56.3]} 8... a6 {[%clk 0:03:00.8]} 9. Ba4 {[%clk 0:02:50.5]} 9... Nge7
{[%clk 0:02:59.8]} 10. Bd6 {[%clk 0:02:50.5]} 10... b5 {[%clk 0:03:00]} 11. Bb3
{[%clk 0:02:50.4]} 11... Bb7 {[%clk 0:03:00.4]} 12. Re1 {[%clk 0:02:39.6]} 12...
Nc8 {[%clk 0:02:58.9]} 13. e5 {[%clk 0:02:39.9]} 13... Nxd6 {[%clk 0:02:58.2]}
14. exd6+ {[%clk 0:02:40.8]} 14... Kf8 {[%clk 0:02:57.7]} 15. Nbd2 {[%clk
0:02:37.4]} 15... Na5 {[%clk 0:02:51.2]} 16. Re7 {[%clk 0:02:35.7]} 16... Qxe7
{[%clk 0:02:24]} 17. dxe7+ {[%clk 0:02:33]} 17... Kxe7 {[%clk 0:02:24.9]} 18.
Qe2+ {[%clk 0:02:29.7]} 18... Kf8 {[%clk 0:02:20.4]} 19. Ne5 {[%clk 0:02:29.4]}
19... d5 {[%clk 0:02:18.5]} 20. Ndf3 {[%clk 0:02:22.1]} 20... Nc4 {[%clk
0:02:14.9]} 21. Re1 {[%clk 0:02:02.9]} 21... d3 {[%clk 0:02:02.4]} 22. Nxd3
{[%clk 0:02:00.1]} 22... Bf6 {[%clk 0:02:01.7]} 23. Nc5 {[%clk 0:01:55.5]} 23...
Bc6 {[%clk 0:01:55.3]} 24. Ne6+ {[%clk 0:01:46.9]} 24... Kg8 {[%clk 0:01:53.6]}
25. Ned4 {[%clk 0:01:44.6]} 25... Bd7 {[%clk 0:01:47.9]} 26. Bxc4 {[%clk
0:01:43.5]} 26... dxc4 {[%clk 0:01:47.1]} 27. Ne5 {[%clk 0:01:42.2]} 27... Re8
{[%clk 0:01:46.2]} 28. f4 {[%clk 0:01:27.5]} 28... Kg7 {[%clk 0:01:43.4]} 29.
Qf2 {[%clk 0:01:26.9]} 29... Bc8 {[%clk 0:01:40.1]} 30. h3 {[%clk 0:01:25.6]}
30... h5 {[%clk 0:01:37.4]} 31. Ndf3 {[%clk 0:01:22.9]} 31... Re7 {[%clk
0:01:30.3]} 32. Qc5 {[%clk 0:01:16.8]} 32... Rhe8 {[%clk 0:01:27.8]} 33. Rf1
{[%clk 0:01:15.1]} 33... Bb7 {[%clk 0:01:26]} 34. Ng5 {[%clk 0:01:15]} 34...
Bxg5 {[%clk 0:01:21.3]} 35. Nxg6 {[%clk 0:00:48.9]} 35... fxg6 {[%clk
0:00:43.2]} 36. fxg5 {[%clk 0:00:45.2]} 36... Re2 {[%clk 0:00:39]} 37. Qd4+
{[%clk 0:00:38]} 37... Kg8 {[%clk 0:00:37.2]} 38. Rf2 {[%clk 0:00:36.7]} 38...
Rxf2 {[%clk 0:00:31]} 39. Kxf2 {[%clk 0:00:37.6]} 39... Be4 {[%clk 0:00:27.8]}
40. Qb6 {[%clk 0:00:28.9]} 40... Bd3 {[%clk 0:00:26]} 41. Kg1 {[%clk 0:00:16.6]}
41... Re1+ {[%clk 0:00:20.3]} 42. Kh2 {[%clk 0:00:15.9]} 42... Re2 {[%clk
0:00:20.6]} 43. Qd4 {[%clk 0:00:12]} 43... Be4 {[%clk 0:00:16.1]} 44. Kg3 {[%clk
0:00:12.4]} 44... Rxg2+ {[%clk 0:00:12.6]} 45. Kf4 {[%clk 0:00:11.8]} 45... Re2
{[%clk 0:00:11.9]} 46. Qd8+ {[%clk 0:00:06.5]} 46... Kf7 {[%clk 0:00:11.6]} 47.
Qc7+ {[%clk 0:00:05.9]} 47... Kg8 {[%clk 0:00:08.5]} 48. Qc8+ {[%clk 0:00:06]}
48... Kf7 {[%clk 0:00:08.1]} 49. Qxa6 {[%clk 0:00:06.1]} 49... Bf5 {[%clk
0:00:08.3]} 50. Qb7+ {[%clk 0:00:04.4]} 50... Kg8 {[%clk 0:00:07.3]} 51. Qb8+
{[%clk 0:00:04.6]} 51... Kf7 {[%clk 0:00:07.1]} 52. Qb7+ {[%clk 0:00:05.2]}
52... Kg8 {[%clk 0:00:07.5]} 53. Qxb5 {[%clk 0:00:05.4]} 53... Re4+ {[%clk
0:00:03.8]} 54. Kf3 {[%clk 0:00:05.5]} 54... Rd4 {[%clk 0:00:03.7]} 55. Ke3
{[%clk 0:00:05]} 55... Rd3+ {[%clk 0:00:03.7]} 56. Kf2 {[%clk 0:00:04.9]} 56...
Rxh3 {[%clk 0:00:03.7]} 57. Qxc4+ {[%clk 0:00:04.7]} 57... Kh7 {[%clk
0:00:03.3]} 58. Qc7+ {[%clk 0:00:04.8]} 58... Kh8 {[%clk 0:00:02.9]} 59. b4
{[%clk 0:00:04.5]} 59... Ra3 {[%clk 0:00:01.9]} 60. Qe5+ {[%clk 0:00:03.9]}
60... Kh7 {[%clk 0:00:02]} 61. Qb2 {[%clk 0:00:04.5]} 61... Ra7 {[%clk
0:00:01.5]} 62. b5 {[%clk 0:00:04.6]} 62... Be4 {[%clk 0:00:01.8]} 63. b6 {[%clk
0:00:04.3]} 63... Rf7+ {[%clk 0:00:02.4]} 64. Kg1 {[%clk 0:00:04.2]} 64... Bb7
{[%clk 0:00:03.3]} 65. a4 {[%clk 0:00:03.7]} 65... Rf5 {[%clk 0:00:02.3]} 66.
Qd2 {[%clk 0:00:03.5]} 66... Rd5 {[%clk 0:00:01.8]} 67. Qe3 {[%clk 0:00:03.5]}
67... Rd1+ {[%clk 0:00:02.3]} 68. Kf2 {[%clk 0:00:02.7]} 68... Rd7 {[%clk
0:00:03.2]} 69. a5 {[%clk 0:00:02.6]} 69... Rf7+ {[%clk 0:00:03.8]} 70. Kg1
{[%clk 0:00:02.8]} 70... Ba6 {[%clk 0:00:03.7]} 71. Qe6 {[%clk 0:00:03.2]} 71...
Kg7 {[%clk 0:00:03.5]} 72. Qe5+ {[%clk 0:00:03.2]} 72... Kh7 {[%clk 0:00:03.6]}
73. Qe6 {[%clk 0:00:03.8]} 73... Kg7 {[%clk 0:00:03.9]} 74. Qd6 {[%clk
0:00:04.3]} 74... Bb7 {[%clk 0:00:03.4]} 75. Qd4+ {[%clk 0:00:04.6]} 75... Kh7
{[%clk 0:00:03.3]} 76. Qd3 {[%clk 0:00:05.1]} 76... Rf5 {[%clk 0:00:02.8]} 77.
a6 {[%clk 0:00:05.1]} 77... Rxg5+ {[%clk 0:00:01.7]} 78. Kf2 {[%clk 0:00:05.7]}
78... Rf5+ {[%clk 0:00:02.2]} 79. Qxf5 {[%clk 0:00:05.8]} 79... gxf5 {[%clk
0:00:02.3]} 80. axb7 {[%clk 0:00:06.7]} 80... h4 {[%clk 0:00:02.7]} 81. b8=Q
{[%clk 0:00:07.6]} 81... h3 {[%clk 0:00:03.6]} 82. Qh2 {[%clk 0:00:07.8]} 82...
Kg6 {[%clk 0:00:04.5]} 83. b7 {[%clk 0:00:08.4]} 83... Kf7 {[%clk 0:00:05]} 84.
b8=Q {[%clk 0:00:08.8]} 84... Ke6 {[%clk 0:00:05.9]} 85. Qbe5+ {[%clk 0:00:09]}
85... Kd7 {[%clk 0:00:05.1]} 86. Qc7+ {[%clk 0:00:09.3]} 86... Ke6 {[%clk
0:00:05.1]} 87. Qhe5# {[%clk 0:00:10.2]} 1-0

[Event "Early-Titled-Tuesday-Blitz-April-16-2024"]
[Site "Chess.com"]
[Date "2024.04.16"]
[Round "9"]
[White "DonCiao"]
[Black "Kotofeyca"]
[Result "0-1"]
[WhiteElo "2073"]
[BlackElo "2471"]
[TimeControl "180+1"]
[EndTime "9:43:10 PDT"]
[Termination "Kotofeyca won by resignation"]

1. c4 {[%clk 0:03:00.9]} 1... c6 {[%clk 0:02:59.8]} 2. g3 {[%clk 0:03:00.6]}
2... d5 {[%clk 0:03:00.3]} 3. Nf3 {[%clk 0:03:00.7]} 3... Nf6 {[%clk 0:03:00.3]}
4. Bg2 {[%clk 0:03:00.7]} 4... Bf5 {[%clk 0:03:00.3]} 5. Qb3 {[%clk 0:03:00.2]}
5... Qc8 {[%clk 0:02:57]} 6. cxd5 {[%clk 0:02:57.1]} 6... cxd5 {[%clk
0:02:56.6]} 7. O-O {[%clk 0:02:56.2]} 7... Nc6 {[%clk 0:02:54.8]} 8. d3 {[%clk
0:02:55.4]} 8... e6 {[%clk 0:02:54.9]} 9. Bf4 {[%clk 0:02:52.3]} 9... Be7 {[%clk
0:02:51]} 10. Nc3 {[%clk 0:02:50.9]} 10... O-O {[%clk 0:02:49.7]} 11. Rac1
{[%clk 0:02:47.9]} 11... Bg4 {[%clk 0:02:43.4]} 12. h3 {[%clk 0:02:42]} 12...
Bxf3 {[%clk 0:02:41.5]} 13. Bxf3 {[%clk 0:02:41.8]} 13... Nd4 {[%clk 0:02:40.3]}
14. Bg2 {[%clk 0:02:39.9]} 14... Nxb3 {[%clk 0:02:39.9]} 0-1